fUST/lending_fUST_20241121
["ID","MTS","AMOUNT","RATE_DAILY","PERIOD"]
[342765005,1732120251089,-500.0,0.00025205,2]
[342765006,1732120251098,-500.0,0.00025205,2]
[342765007,1732120251107,-500.0,0.00025205,2]
[342765008,1732120251117,-576.96,0.00025205,2]
[342765009,1732120251126,-500.0,0.00025205,2]
[342765010,1732120251135,-912.61,0.00025205,2]
[342765011,1732120251144,-5859.54,0.00025205,2]
[342765012,1732120251154,-694.75,0.00025205,2]
[342765013,1732120251163,-500.0,0.00025205,2]
[342765014,1732120251173,-1530.7,0.00025205,2]
[342765015,1732120251255,-500.0,0.00025205,2]
[342765016,1732120251266,-500.0,0.00025205,2]
[342765017,1732120251276,-500.0,0.00025205,2]
[342765018,1732120251285,-500.0,0.00025205,2]
[342765019,1732120251294,-517.28,0.00025205,2]
[342765020,1732120251304,-5527.15,0.00025205,2]
[342765021,1732120251313,-500.0,0.00025205,2]
[342765022,1732120251323,-500.0,0.00025205,2]
[342765023,1732120251332,-552.77863766,0.00025259,2]
[342765024,1732120251341,-500.0,0.00025305,7]
[342765025,1732120251350,-641.63,0.00025477,2]
[342765026,1732120251360,-500.0,0.00025478,2]
[342765027,1732120251369,-500.0,0.00025478,2]
[342765028,1732120251379,-624.62,0.00025478,2]
[342765029,1732120251388,-500.0,0.00025478,2]
[342765030,1732120251397,-749.09,0.00025478,2]
[342765031,1732120251407,-228.53755459,0.00025479,2]
[342765032,1732120251417,-442.62391444,0.00025479,2]
[342765033,1732120251426,-501.15,0.00025479,2]
[342765034,1732120251436,-500.0,0.00025479,2]
[342765035,1732120251445,-909.21,0.00025479,2]
[342765036,1732120251454,-500.0,0.00025479,2]
[342765037,1732120251464,-500.0,0.00025479,2]
[342765038,1732120251473,-500.0,0.00025479,2]
[342765039,1732120251486,-576.96,0.00025479,2]
[342765040,1732120251494,-500.0,0.00025479,2]
[342765041,1732120251504,-912.61,0.00025479,2]
[342765042,1732120251513,-5859.54,0.00025479,2]
[342765043,1732120251522,-694.75,0.00025479,2]
[342765044,1732120251532,-500.0,0.00025479,2]
[342765045,1732120251542,-1530.7,0.00025479,2]
[342765046,1732120251551,-500.0,0.00025479,2]
[342765047,1732120251560,-500.0,0.00025479,2]
[342765048,1732120251569,-174.52,0.00025479,2]
[342765049,1732120251578,-500.0,0.00025479,2]
[342765050,1732120251588,-517.28,0.00025479,2]
[342765051,1732120251597,-5527.15,0.00025479,2]
[342765052,1732120251607,-500.0,0.00025479,2]
[342765053,1732120251616,-500.0,0.00025479,2]
[342765054,1732120251626,-2836.83,0.000255,14]
[342765055,1732120251635,-8027.81,0.000255,14]
[342765056,1732120251644,-1056.97045912,0.00025585,2]
[342765057,1732120251654,-641.63,0.00025751,2]
[342765058,1732120251663,-500.0,0.00025752,2]
[342765059,1732120251673,-500.0,0.00025752,2]
[342765060,1732120251682,-624.62,0.00025752,2]
[342765061,1732120251691,-500.0,0.00025752,2]
[342765062,1732120251701,-749.09,0.00025752,2]
[342765063,1732120251710,-501.15,0.00025753,2]
[342765064,1732120251720,-500.0,0.00025753,2]
[342765065,1732120251732,-909.21,0.00025753,2]
[342765066,1732120251741,-574.44,0.00025753,2]
[342765067,1732120251751,-500.0,0.00025753,2]
[342765068,1732120251760,-154.2389037,0.00025753,2]
[342765069,1732120251769,-576.96,0.00025753,2]
[342765070,1732120251779,-500.0,0.00025753,2]
[342765071,1732120251788,-912.61,0.00025753,2]
[342765072,1732120251799,-5859.54,0.00025753,2]
[342765073,1732120251808,-694.75,0.00025753,2]
[342765074,1732120251820,-500.0,0.00025753,2]
[342765075,1732120251831,-1530.7,0.00025753,2]
[342765076,1732120251841,-508.93,0.00025753,2]
[342765077,1732120251851,-500.0,0.00025753,2]
[342765078,1732120251861,-320.86,0.00025753,2]
[342765079,1732120251871,-517.28,0.00025753,2]
[342765080,1732120251880,-5527.15,0.00025753,2]
[342765081,1732120251890,-500.0,0.00025753,2]
[342765082,1732120251902,-500.0,0.00025753,2]
[342765083,1732120251913,-151.0,0.00025777,5]
[342765084,1732120251923,-823.0,0.00025808,2]
[342765085,1732120251933,-552.77863766,0.00025858,2]
[342765086,1732120251942,-2548.23,0.00026,15]
[342765087,1732120251952,-641.63,0.00026025,2]
[342765088,1732120251962,-500.0,0.00026026,2]
[342765089,1732120251971,-500.0,0.00026026,2]
[342765090,1732120251982,-624.62,0.00026026,2]
[342765091,1732120251992,-500.0,0.00026026,2]
[342765092,1732120252001,-749.09,0.00026026,2]
[342765093,1732120252010,-501.15,0.00026027,2]
[342765094,1732120252020,-500.0,0.00026027,2]
[342765095,1732120252030,-909.21,0.00026027,2]
[342765096,1732120252039,-500.0,0.00026027,2]
[342765097,1732120252048,-576.96,0.00026027,2]
[342765098,1732120252058,-500.0,0.00026027,2]
[342765099,1732120252068,-912.61,0.00026027,2]
[342765100,1732120252078,-5859.54,0.00026027,2]
[342765101,1732120252088,-694.75,0.00026027,2]
[342765102,1732120252097,-500.0,0.00026027,2]
[342765103,1732120252107,-1530.7,0.00026027,2]
[342765104,1732120252117,-500.0,0.00026027,2]
[342765105,1732120252126,-517.28,0.00026027,2]
[342765106,1732120252136,-5527.15,0.00026027,2]
[342765107,1732120252145,-500.0,0.00026027,2]
[342765108,1732120252155,-500.0,0.00026027,2]
[342765109,1732120252164,-151.0,0.0002628,6]
[342765110,1732120252173,-641.63,0.00026299,2]
[342765111,1732120252183,-500.0,0.000263,2]
[342765112,1732120252193,-500.0,0.000263,2]
[342765113,1732120252203,-624.62,0.000263,2]
[342765114,1732120252213,-500.0,0.000263,2]
[342765115,1732120252222,-749.09,0.000263,2]
[342765116,1732120252235,-501.15,0.00026301,2]
[342765117,1732120252244,-500.0,0.00026301,2]
[342765118,1732120252253,-909.21,0.00026301,2]
[342765119,1732120252264,-500.0,0.00026301,2]
[342765120,1732120252273,-576.96,0.00026301,2]
[342765121,1732120252283,-500.0,0.00026301,2]
[342765122,1732120252293,-912.61,0.00026301,2]
[342765123,1732120252302,-5859.54,0.00026301,2]
[342765124,1732120252312,-694.75,0.00026301,2]
[342765125,1732120252322,-500.0,0.00026301,2]
[342765126,1732120252331,-1530.7,0.00026301,2]
[342765127,1732120252341,-500.0,0.00026301,2]
[342765128,1732120252350,-517.28,0.00026301,2]
[342765129,1732120252359,-5527.15,0.00026301,2]
[342765130,1732120252369,-500.0,0.00026301,2]
[342765131,1732120252378,-500.0,0.00026301,2]
[342765132,1732120252388,-552.77863766,0.00026458,2]
[342765133,1732120252398,-2500.0,0.0002653,3]
[342765134,1732120252407,-2500.0,0.00026539,3]
[342765135,1732120252417,-509.3976,0.0002657,15]
[342765136,1732120252426,-641.63,0.00026573,2]
[342765137,1732120252435,-500.0,0.00026574,2]
[342765138,1732120252443,-500.0,0.00026574,2]
[342765139,1732120252452,-624.62,0.00026574,2]
[342765140,1732120252461,-500.0,0.00026574,2]
[342765141,1732120252470,-749.09,0.00026574,2]
[342765142,1732120252482,-501.15,0.00026575,2]
[342765143,1732120252491,-500.0,0.00026575,2]
[342765144,1732120252500,-909.21,0.00026575,2]
[342765145,1732120252509,-500.0,0.00026575,2]
[342765146,1732120252518,-576.96,0.00026575,2]
[342765147,1732120252527,-500.0,0.00026575,2]
[342765148,1732120252536,-912.61,0.00026575,2]
[342765149,1732120252545,-5859.54,0.00026575,2]
[342765150,1732120252554,-694.75,0.00026575,2]
[342765151,1732120252563,-500.0,0.00026575,2]
[342765152,1732120252572,-1530.7,0.00026575,2]
[342765153,1732120252580,-500.0,0.00026575,2]
[342765154,1732120252589,-517.28,0.00026575,2]
[342765155,1732120252598,-5527.15,0.00026575,2]
[342765156,1732120252607,-263.48,0.00026575,2]
[342765157,1732120252616,-500.0,0.00026575,2]
[342765158,1732120252625,-1056.97045912,0.00026675,2]
[342765159,1732120252634,-151.0,0.00026783,6]
[342765160,1732120252644,-641.63,0.00026847,2]
[342765161,1732120252653,-500.0,0.00026848,2]
[342765162,1732120252662,-500.0,0.00026848,2]
[342765163,1732120252671,-624.62,0.00026848,2]
[342765164,1732120252680,-151.0,0.00026848,7]
[342765165,1732120252689,-500.0,0.00026848,2]
[342765166,1732120252698,-749.09,0.00026848,2]
[342765167,1732120252707,-151.0,0.00026848,7]
[342765168,1732120252715,-501.15,0.00026849,2]
[342765169,1732120252724,-500.0,0.00026849,2]
[342765170,1732120252736,-909.21,0.00026849,2]
[342765171,1732120252746,-487.00598636,0.00026849,2]
[342765172,1732120252756,-576.96,0.00026849,2]
[342765173,1732120252766,-500.0,0.00026849,2]
[342765174,1732120252776,-912.61,0.00026849,2]
[342765175,1732120252787,-5859.54,0.00026849,2]
[342765176,1732120252796,-694.75,0.00026849,2]
[342765177,1732120252886,-500.0,0.00026849,2]
[342765178,1732120252898,-1530.7,0.00026849,2]
[342765179,1732120252909,-326.09844267,0.00026849,2]
[342765180,1732120252920,-517.28,0.00026849,2]
[342765181,1732120252931,-5527.15,0.00026849,2]
[342765182,1732120252942,-548.24,0.00026849,2]
[342765183,1732120252952,-500.0,0.00026949,7]
[342765184,1732120252963,-552.77863766,0.00027057,2]
[342765185,1732120252974,-641.63,0.00027121,2]
[342765186,1732120252989,-151.0,0.00027121,7]
[342765187,1732120253003,-151.0,0.00027121,7]
[342765188,1732120253013,-151.0,0.00027121,7]
[342765189,1732120253023,-151.0,0.00027121,7]
[342765190,1732120253033,-151.0,0.00027121,7]
[342765191,1732120253042,-151.0,0.00027121,7]
[342765192,1732120253053,-151.0,0.00027121,7]
[342765193,1732120253062,-151.0,0.00027121,7]
[342765194,1732120253072,-151.0,0.00027121,7]
[342765195,1732120253082,-151.0,0.00027121,7]
[342765196,1732120253091,-151.0,0.00027121,7]
[342765197,1732120253100,-458.644862,0.00027121,7]
[342765198,1732120253110,-458.644862,0.00027121,7]
[342765199,1732120253119,-500.0,0.00027122,2]
[342765200,1732120253129,-500.0,0.00027122,2]
[342765201,1732120253139,-624.62,0.00027122,2]
[342765202,1732120253149,-500.0,0.00027122,2]
[342765203,1732120253158,-749.09,0.00027122,2]
[342765204,1732120253167,-501.15,0.00027123,2]
[342765205,1732120253177,-500.0,0.00027123,2]
[342765206,1732120253186,-909.21,0.00027123,2]
[342765207,1732120253196,-576.96,0.00027123,2]
[342765208,1732120253206,-500.0,0.00027123,2]
[342765209,1732120253216,-912.61,0.00027123,2]
[342765210,1732120253225,-5859.54,0.00027123,2]
[342765211,1732120253239,-694.75,0.00027123,2]
[342765212,1732120253249,-226.49,0.00027123,2]
[342765213,1732120253258,-1530.7,0.00027123,2]
[342765214,1732120253267,-517.28,0.00027123,2]
[342765215,1732120253277,-5527.15,0.00027123,2]
[342765216,1732120253287,-151.0,0.00027286,6]
[342765217,1732120253296,-500.0,0.00027395,2]
[342765218,1732120253306,-506.38342159,0.00027395,2]
[342765219,1732120253315,-641.63,0.00027395,2]
[342765220,1732120253325,-500.0,0.00027396,2]
[342765221,1732120253334,-581.85652683,0.00027396,2]
[342765222,1732120253344,-624.62,0.00027396,2]
[342765223,1732120253354,-500.0,0.00027396,2]
[342765224,1732120253364,-749.09,0.00027396,2]
[342765225,1732120253374,-501.15,0.00027397,2]
[342765226,1732120253384,-500.0,0.00027397,2]
[342765227,1732120253394,-909.21,0.00027397,2]
[342765228,1732120253404,-576.96,0.00027397,2]
[342765229,1732120253414,-545.47,0.00027397,2]
[342765230,1732120253424,-912.61,0.00027397,2]
[342765231,1732120253433,-5859.54,0.00027397,2]
[342765232,1732120253442,-694.75,0.00027397,2]
[342765233,1732120253452,-1530.7,0.00027397,2]
[342765234,1732120253462,-517.28,0.00027397,2]
[342765235,1732120253470,-5527.15,0.00027397,2]
[342765236,1732120253483,-4680.487701,0.00027397,120]
[342765237,1732120253492,-552.77863766,0.00027656,2]
[342765238,1732120253502,-641.63,0.00027669,2]
[342765239,1732120253511,-1097.13026811,0.00027669,3]
[342765240,1732120253520,-500.0,0.0002767,2]
[342765241,1732120253530,-624.62,0.0002767,2]
[342765242,1732120253539,-456.82431347,0.0002767,2]
[342765243,1732120253648,-43.17568653,0.0002767,2]
[342765244,1732120253660,-749.09,0.0002767,2]
[342765245,1732120253671,-501.15,0.00027671,2]
[342765246,1732120253681,-500.0,0.00027671,2]
[342765247,1732120253692,-909.21,0.00027671,2]
[342765248,1732120253702,-576.96,0.00027671,2]
[342765249,1732120253712,-912.61,0.00027671,2]
[342765250,1732120253724,-4687.80431347,0.00027671,2]
[342765251,1732120253748,-1171.73568653,0.00027671,2]
[342765252,1732120253759,-694.75,0.00027671,2]
[342765253,1732120253770,-1530.7,0.00027671,2]
[342765254,1732120253780,-517.28,0.00027671,2]
[342765255,1732120253790,-1396.06268118,0.00027671,2]
[342765256,1732120253804,-4131.08731882,0.00027671,2]
[342765257,1732120253814,-1056.97045912,0.00027765,2]
[342765258,1732120253827,-151.0,0.00027789,7]
[342765259,1732120253838,-1108.0,0.00027833,2]
[342765260,1732120253848,-530.0,0.00027833,2]
[342765261,1732120253858,-2383.0,0.00027833,2]
[342765262,1732120253869,-151.0,0.00027833,7]
[342765263,1732120253879,-151.0,0.00027833,7]
[342765264,1732120253890,-199.403329,0.00027833,7]
[342765265,1732120253901,-199.403329,0.00027833,7]
[342765266,1732120253911,-8027.81,0.000279,14]
[342765267,1732120253920,-641.63,0.00027943,2]
[342765268,1732120253929,-131.19219335,0.00027944,2]
[342765269,1732120253964,-368.80780665,0.00027944,2]
[342765270,1732120253974,-50.71989416,0.00027944,2]
[342765271,1732120253993,-573.90010584,0.00027944,2]
[342765272,1732120254004,-500.0,0.00027944,2]
[342765273,1732120254014,-749.09,0.00027944,2]
[342765274,1732120254023,-501.15,0.00027945,2]
[342765275,1732120254033,-405.67195052,0.00027945,2]
[342765276,1732120254043,-909.21,0.00027945,2]
[342765277,1732120254053,-151.0,0.00027945,7]
[342765278,1732120254062,-576.96,0.00027945,2]
[342765279,1732120254071,-912.61,0.00027945,2]
[342765280,1732120254080,-5859.54,0.00027945,2]
[342765281,1732120254090,-694.75,0.00027945,2]
[342765282,1732120254100,-1530.7,0.00027945,2]
[342765283,1732120254109,-517.28,0.00027945,2]
[342765284,1732120254119,-5527.15,0.00027945,2]
[342765285,1732120254129,-306.0000001,0.00027945,30]
[342765286,1732120254138,-2836.83,0.00028,30]
[342765287,1732120254147,-1152.0,0.00028102,2]
[342765288,1732120254157,-641.63,0.00028217,2]
[342765289,1732120254168,-270.3,0.00028218,2]
[342765290,1732120254177,-624.62,0.00028218,2]
[342765291,1732120254187,-536.72683594,0.00028218,2]
[342765292,1732120254196,-749.09,0.00028218,2]
[342765293,1732120254206,-151.0,0.00028219,7]
[342765294,1732120254215,-152.759871,0.00028219,7]
[342765295,1732120254225,-151.0,0.00028219,7]
[342765296,1732120254240,-167.522239,0.00028219,7]
[342765297,1732120254249,-501.33588981,0.00028219,2]
[342765298,1732120254259,-210.043223,0.00028219,7]
[342765299,1732120254270,-210.043223,0.00028219,7]
[342765300,1732120254281,-151.0,0.00028219,7]
[342765301,1732120254291,-151.0,0.00028219,7]
[342765302,1732120254301,-909.26,0.00028219,2]
[342765303,1732120254382,-274.772075,0.00028219,7]
[342765304,1732120254392,-151.0,0.00028219,7]
[342765305,1732120254402,-577.02545834,0.00028219,2]
[342765306,1732120254412,-912.75,0.00028219,2]
[342765307,1732120254421,-5859.69,0.00028219,2]
[342765308,1732120254430,-504.98912845,0.00028219,2]
[342765309,1732120254443,-189.95087155,0.00028219,2]
[342765310,1732120254452,-1530.82,0.00028219,2]
[342765311,1732120254462,-517.32944043,0.00028219,2]
[342765312,1732120254471,-4288.68636137,0.00028219,2]
[342765313,1732120333148,189.029681,0.00013973,2]
[342765344,1732121059445,189.029681,0.00013973,2]
[342765456,1732121435199,-433.08683347,0.00020049,2]
[342765460,1732121435259,-4130.28844073,0.00020049,2]
[342765461,1732121435269,-615.9316237,0.00020849,2]
[342765462,1732121435279,-300.0,0.00020849,2]
[342765463,1732121435290,-300.0,0.00020849,2]
[342765464,1732121435300,-1628.09884663,0.00020849,2]
[342765465,1732121435318,-303.8656,0.00020849,2]
[342765466,1732121435330,-9361.5,0.00020849,2]
[342765500,1732121438343,-619.69894878,0.00020849,2]
[342765501,1732121438355,-1883.82967341,0.00020849,2]
[342765502,1732121438401,-317.2671625,0.00020849,2]
[342765503,1732121438413,-5619.64,0.00020849,2]
[342765504,1732121438425,-57095.09976868,0.00020849,2]
[342765505,1732121438435,-500.0,0.00020849,2]
[342765506,1732121438444,-500.0,0.00020849,2]
[342765507,1732121438454,-501.24388771,0.00020849,2]
[342765508,1732121438463,-500.0,0.00020849,2]
[342765509,1732121438473,-379.86850077,0.00020849,2]
[342765510,1732121438482,-520.63947016,0.00020849,2]
[342765511,1732121438492,-500.0,0.00020849,2]
[342765512,1732121438501,-500.0,0.00020849,2]
[342765513,1732121438511,-500.0,0.00020849,2]
[342765514,1732121438521,-480.34695125,0.00020849,2]
[342765515,1732121438530,-500.0,0.00020849,2]
[342765516,1732121438539,-490.50928649,0.00020849,2]
[342765517,1732121438550,-500.0,0.00020849,2]
[342765518,1732121438559,-500.0,0.00020849,2]
[342765519,1732121438569,-500.0,0.00020849,2]
[342765520,1732121438578,-500.0,0.00020849,2]
[342765521,1732121438588,-500.0,0.00020849,2]
[342765522,1732121438599,-500.0,0.00020849,2]
[342765523,1732121438608,-589.52012297,0.00020849,2]
[342765524,1732121438618,-588.98567894,0.00020849,2]
[342765525,1732121438628,-625.95974355,0.00020849,2]
[342765526,1732121438637,-500.0,0.00020849,2]
[342765527,1732121438646,-500.0,0.00020849,2]
[342765528,1732121438655,-500.0,0.00020849,2]
[342765529,1732121438665,-500.0,0.00020849,2]
[342765530,1732121438674,-7686.10716078,0.0002085,2]
[342765531,1732121438683,-156.23,0.00021041,3]
[342765532,1732121438692,-468.7,0.00021041,3]
[342765533,1732121438701,-23382.6404326,0.00021051,2]
[342765534,1732121438711,-215.859445,0.0002112,2]
[342765535,1732121438720,-152.0,0.00021754,2]
[342765536,1732121438729,-261.76861024,0.00021817,2]
[342765537,1732121438739,-500.0,0.00021917,2]
[342765538,1732121438748,-500.0,0.00021917,2]
[342765539,1732121438759,-152.35940962,0.00021917,2]
[342765540,1732121438768,-517.92503262,0.00021917,2]
[342765541,1732121438777,-500.0,0.00021917,2]
[342765542,1732121438786,-500.0,0.00021917,2]
[342765543,1732121438795,-500.0,0.00021917,2]
[342765544,1732121438804,-500.0,0.00021917,2]
[342765545,1732121438813,-500.0,0.00021917,2]
[342765546,1732121438822,-500.0,0.00021917,2]
[342765547,1732121438832,-500.0,0.00021917,2]
[342765548,1732121438843,-500.0,0.00021917,2]
[342765549,1732121438853,-500.0,0.00021917,2]
[342765550,1732121438862,-624.7,0.00021917,2]
[342765551,1732121438872,-500.0,0.00021917,2]
[342765552,1732121438881,-500.0,0.00021917,2]
[342765553,1732121438890,-585.5,0.00021917,2]
[342765554,1732121438899,-500.0,0.00021917,2]
[342765555,1732121438908,-500.0,0.00021917,2]
[342765556,1732121438917,-625.16,0.00021917,2]
[342765557,1732121438926,-500.0,0.00021917,2]
[342765558,1732121438935,-500.0,0.00021917,2]
[342765559,1732121438944,-500.0,0.00021917,2]
[342765560,1732121438953,-159.39730592,0.00021917,2]
[342765561,1732121438963,-500.0,0.00021917,2]
[342765562,1732121438972,-627.64,0.00021917,2]
[342765563,1732121438982,-500.0,0.00021917,2]
[342765564,1732121438992,-370.97427872,0.00021917,2]
[342765565,1732121439002,-220.41470877,0.00021917,2]
[342765566,1732121439011,-500.53810249,0.00021917,2]
[342765567,1732121439020,-500.0,0.00021917,2]
[342765568,1732121439030,-500.0,0.00021917,2]
[342765569,1732121439039,-500.0,0.00021917,2]
[342765570,1732121439048,-500.0,0.00021917,2]
[342765571,1732121439058,-501.75553592,0.00021917,2]
[342765572,1732121439067,-314.91524562,0.00021917,2]
[342765573,1732121439077,-504.41453201,0.00021917,2]
[342765574,1732121439087,-503.1962462,0.00021917,2]
[342765575,1732121439101,-502.58139788,0.00021917,2]
[342765576,1732121439110,-500.0,0.00021917,2]
[342765577,1732121439119,-500.0,0.00021917,2]
[342765578,1732121439128,-500.0,0.00021917,2]
[342765579,1732121439138,-500.0,0.00021917,2]
[342765580,1732121439150,-502.65267119,0.00021917,2]
[342765581,1732121439159,-504.43410723,0.00021917,2]
[342765582,1732121439168,-500.0,0.00021917,2]
[342765583,1732121439177,-501.6270335,0.00021917,2]
[342765584,1732121439188,-500.0,0.00021917,2]
[342765585,1732121439197,-518.90747882,0.00021917,2]
[342765586,1732121439206,-500.0,0.00021917,2]
[342765587,1732121439216,-500.0,0.00021917,2]
[342765588,1732121439227,-500.0,0.00021917,2]
[342765589,1732121439236,-500.0,0.00021917,2]
[342765590,1732121439245,-500.0,0.00021917,2]
[342765591,1732121439254,-500.0,0.00021917,2]
[342765592,1732121439264,-500.0,0.00021917,2]
[342765593,1732121439273,-519.39244337,0.00021917,2]
[342765594,1732121439283,-512.74304872,0.00021917,2]
[342765595,1732121439292,-500.0,0.00021917,2]
[342765596,1732121439302,-500.0,0.00021917,2]
[342765597,1732121439312,-217.73855162,0.00021917,2]
[342765598,1732121439322,-500.0,0.00021917,2]
[342765599,1732121439332,-500.0,0.00021917,2]
[342765600,1732121439345,-500.0,0.00021917,2]
[342765601,1732121439355,-500.0,0.00021917,2]
[342765602,1732121439364,-500.0,0.00021917,2]
[342765603,1732121439374,-500.0,0.00021917,2]
[342765604,1732121439383,-500.0,0.00021917,2]
[342765605,1732121439393,-500.0,0.00021917,2]
[342765606,1732121439402,-214.20548851,0.00021917,2]
[342765607,1732121439412,-500.0,0.00021917,2]
[342765608,1732121439421,-500.0,0.00021917,2]
[342765609,1732121439431,-500.0,0.00021917,2]
[342765610,1732121439440,-500.0,0.00021917,2]
[342765611,1732121439450,-511.77381879,0.00021917,2]
[342765612,1732121439459,-500.0,0.00021917,2]
[342765613,1732121439469,-500.0,0.00021917,2]
[342765614,1732121439478,-500.0,0.00021917,2]
[342765615,1732121439489,-500.0,0.00021917,2]
[342765616,1732121439499,-500.0,0.00021917,2]
[342765617,1732121439508,-500.0,0.00021917,2]
[342765618,1732121439517,-500.0,0.00021917,2]
[342765619,1732121439527,-500.0,0.00021917,2]
[342765620,1732121439536,-500.0,0.00021917,2]
[342765621,1732121439545,-500.0,0.00021917,2]
[342765622,1732121439555,-500.0,0.00021917,2]
[342765623,1732121439566,-500.0,0.00021917,2]
[342765624,1732121439575,-500.0,0.00021917,2]
[342765625,1732121439584,-500.0,0.00021917,2]
[342765626,1732121439594,-500.0,0.00021917,2]
[342765627,1732121439608,-500.0,0.00021917,2]
[342765628,1732121439618,-185.02,0.00021917,2]
[342765629,1732121439627,-500.0,0.00021917,2]
[342765630,1732121439636,-500.0,0.00021917,2]
[342765631,1732121439645,-500.0,0.00021917,2]
[342765633,1732121439654,-500.0,0.00021917,2]
[342765635,1732121439663,-500.68906246,0.00021917,2]
[342765636,1732121439672,-544.87,0.00021917,2]
[342765637,1732121439681,-500.54702441,0.00021917,2]
[342765638,1732121439691,-500.0,0.00021917,2]
[342765639,1732121439700,-500.0,0.00021917,2]
[342765642,1732121439709,-199.17093623,0.00021917,2]
[342765645,1732121439718,-500.0,0.00021917,2]
[342765646,1732121439726,-500.0,0.00021917,2]
[342765647,1732121439736,-500.0,0.00021917,2]
[342765648,1732121439745,-500.0,0.00021917,2]
[342765649,1732121439754,-500.0,0.00021917,2]
[342765650,1732121439763,-500.0,0.00021917,2]
[342765651,1732121439772,-500.0,0.00021917,2]
[342765652,1732121439782,-500.0,0.00021917,2]
[342765653,1732121439790,-500.0,0.00021917,2]
[342765654,1732121439799,-1853.93,0.00021917,2]
[342765655,1732121439809,-500.0,0.00021917,2]
[342765656,1732121439818,-500.0,0.00021917,2]
[342765658,1732121439827,-356.07335512,0.00021917,2]
[342765660,1732121439836,-500.0,0.00021917,2]
[342765662,1732121439850,-500.0,0.00021917,2]
[342765663,1732121439859,-500.0,0.00021917,2]
[342765664,1732121439868,-576.12892757,0.00021917,2]
[342765665,1732121439877,-500.0,0.00021917,2]
[342765669,1732121439980,-500.0,0.00021917,2]
[342765670,1732121439991,-500.0,0.00021917,2]
[342765672,1732121440002,-500.0,0.00021917,2]
[342765674,1732121440011,-500.0,0.00021917,2]
[342765676,1732121440021,-500.0,0.00021917,2]
[342765677,1732121440031,-551.72805956,0.00021917,2]
[342765678,1732121440040,-500.0,0.00021917,2]
[342765680,1732121440050,-574.89,0.00021917,2]
[342765681,1732121440060,-500.0,0.00021917,2]
[342765682,1732121440070,-500.0,0.00021917,2]
[342765683,1732121440079,-500.0,0.00021917,2]
[342765684,1732121440089,-501.45794595,0.00021917,2]
[342765685,1732121440102,-500.0,0.00021917,2]
[342765686,1732121440112,-500.0,0.00021917,2]
[342765687,1732121440121,-500.0,0.00021917,2]
[342765688,1732121440130,-500.0,0.00021917,2]
[342765689,1732121440140,-926.14,0.00021917,2]
[342765690,1732121440153,-500.0,0.00021917,2]
[342765691,1732121440163,-500.0,0.00021917,2]
[342765692,1732121440172,-500.0,0.00021917,2]
[342765693,1732121440182,-500.0,0.00021917,2]
[342765694,1732121440192,-500.0,0.00021917,2]
[342765695,1732121440202,-500.0,0.00021917,2]
[342765696,1732121440211,-500.0,0.00021917,2]
[342765697,1732121440222,-219.82400758,0.00021917,2]